bitfinex/quotes_SOLUSD_20250514
["timestamp","ask_amount","ask_price","bid_price","bid_amount"]
[1747199665331,8.418672,181.35,181.34,26.0]
[1747199665535,8.418672,181.35,181.32,18.66]
[1747199666056,8.418672,181.35,181.34,26.0]
[1747199666249,5.5135358,181.38,181.34,26.0]
[1747199666569,8.418672,181.36,181.34,26.0]
[1747199666939,8.418672,181.37,181.34,26.0]
[1747199667141,8.418672,181.36,181.34,26.0]
[1747199669648,8.418672,181.35,181.32,18.66]
[1747199671144,8.418672,181.36,181.32,19.76299912]
[1747199671474,5.51328139,181.39,181.32,19.76299912]
[1747199671638,8.418672,181.37,181.32,19.76299912]
[1747199672867,8.418672,181.36,181.32,19.76299912]
[1747199673567,8.418672,181.36,181.32,18.66]
[1747199675160,5.51372928,181.37,181.32,18.66]
[1747199675368,8.418672,181.36,181.32,18.66]
[1747199678267,13.93256942,181.36,181.32,18.66]
[1747199680278,8.418672,181.36,181.32,18.66]
[1747199681973,13.93257801,181.36,181.32,18.66]
[1747199682682,8.418672,181.36,181.32,18.66]
[1747199683255,8.418672,181.36,181.33,18.62]
[1747199685266,5.39188028,181.36,181.33,18.62]
[1747199686176,5.51237528,181.41,181.33,18.62]
[1747199686476,5.39188028,181.38,181.33,18.62]
[1747199686676,5.39188028,181.39,181.33,18.62]
[1747199686880,5.39188028,181.38,181.33,18.62]
[1747199687080,10.90517766,181.38,181.33,18.62]
[1747199689286,10.90517766,181.38,181.34,9.3]
[1747199690293,5.39188028,181.38,181.34,35.3]
[1747199690471,10.90518895,181.38,181.34,35.3]
[1747199690976,5.39188028,181.38,181.34,35.3]
[1747199691175,10.90526665,181.38,181.34,35.3]
[1747199692577,10.90526665,181.38,181.34,26.0]
[1747199693499,10.9058711,181.36,181.34,26.0]
[1747199694166,5.39188028,181.35,181.33,18.62]
[1747199694403,5.51399082,181.36,181.33,18.62]
[1747199694691,5.39188028,181.35,181.33,18.62]
[1747199698970,5.39188028,181.34,181.33,18.62]
[1747199700302,10.90638342,181.34,181.33,18.62]
[1747199700811,10.90638342,181.34,181.28,26.0]
[1747199700812,10.90638342,181.34,181.28,18.62]
[1747199701111,19.30076099,181.34,181.29,0.48]
[1747199702275,8.4318616,181.3,181.28,18.62]
[1747199702476,8.4318616,181.29,181.28,18.62]
[1747199704800,19.30076099,181.34,181.28,18.62]
[1747199705515,8.4318616,181.29,181.28,18.62]
[1747199707514,19.30076099,181.34,181.28,18.62]
[1747199707714,8.4318616,181.29,181.28,18.62]
[1747199708328,5.51480725,181.33,181.28,18.62]
[1747199708507,8.4318616,181.3,181.28,18.62]
[1747199708825,8.4318616,181.3,181.28,44.62]
[1747199709214,5.51480725,181.33,181.28,44.62]
[1747199709520,8.4318616,181.32,181.28,44.62]
[1747199709725,8.4318616,181.31,181.28,44.62]
[1747199710017,5.51518007,181.32,181.28,44.62]
[1747199710218,8.4318616,181.31,181.28,18.62]
[1747199713320,5.51389501,181.36,181.3,26.0]
[1747199713522,8.4318616,181.35,181.3,26.0]
[1747199714298,5.51389501,181.36,181.3,26.0]
[1747199714299,8.4318616,181.36,181.3,26.0]
[1747199715833,8.4318616,181.36,181.31,1.10308311]
[1747199716910,8.4318616,181.37,181.32,27.5181]
[1747199718033,8.4318616,181.38,181.32,28.62107077]
[1747199718535,8.4318616,181.37,181.32,28.62107077]
[1747199719110,5.51237528,181.41,181.32,28.62107077]
[1747199719436,8.4318616,181.37,181.32,28.62107077]
[1747199722829,14.06409125,181.43,181.32,28.62107077]
[1747199723135,8.4318616,181.37,181.32,28.62107077]
[1747199723511,14.06409125,181.43,181.32,28.62107077]
[1747199723928,8.4318616,181.39,181.32,28.62107077]
[1747199724531,8.4318616,181.38,181.32,28.62107077]
[1747199724727,5.51279853,181.4,181.32,28.62107077]
[1747199724929,8.4318616,181.39,181.32,28.62107077]
[1747199725127,14.06409125,181.43,181.32,28.62107077]
[1747199725432,8.4318616,181.39,181.32,28.62107077]
[1747199726212,8.4318616,181.38,181.32,28.62107077]
[1747199727234,8.4318616,181.36,181.32,27.5181]
[1747199727438,8.4318616,181.33,181.29,6.2539]
[1747199727830,8.4318616,181.33,181.3,26.0]
[1747199728136,0.14216157,181.4,181.3,26.0]
[1747199728343,18.933972,181.41,181.3,26.0]
[1747199728542,8.4318616,181.36,181.3,26.0]
[1747199729654,8.4318616,181.36,181.31,1.10308311]
[1747199731146,5.51267916,181.4,181.31,1.10308311]
[1747199731441,8.4318616,181.36,181.31,1.10308311]
[1747199731953,5.51267916,181.4,181.31,1.10308311]
[1747199732147,8.4318616,181.38,181.32,26.0]
[1747199732323,8.4318616,181.38,181.32,27.5205]
[1747199733017,8.4318616,181.38,181.33,19.66296145]
[1747199733323,18.933972,181.43,181.33,19.66296145]
[1747199733524,8.4318616,181.39,181.33,19.66296145]
[1747199734354,5.51146384,181.44,181.34,18.54]
[1747199734530,5.51146384,181.44,181.37,26.0]
[1747199734531,8.4318616,181.41,181.37,26.0]
[1747199735254,13.94428803,181.41,181.37,26.0]
[1747199735458,8.4318616,181.41,181.37,26.0]
[1747199736060,8.4318616,181.39,181.37,26.0]
[1747199736756,8.4318616,181.4,181.37,26.0]
[1747199737657,5.51178876,181.43,181.37,27.10271591]
[1747199737860,8.4318616,181.41,181.37,27.10271591]
[1747199738349,8.4318616,181.43,181.38,1.6524]
[1747199738667,5.51116009,181.45,181.38,1.6524]
[1747199738668,8.4318616,181.42,181.39,18.52]
[1747199738842,5.51116009,181.45,181.39,18.52]
[1747199738843,8.4318616,181.41,181.39,18.52]
[1747199739231,8.4318616,181.4,181.39,18.52]
[1747199739656,13.94454076,181.4,181.39,18.52]
[1747199740178,13.94454076,181.4,181.37,26.0]
[1747199740531,8.4318616,181.38,181.37,26.0]
[1747199741735,8.4318616,181.38,181.36,18.52]
[1747199743237,8.4318616,181.37,181.36,18.52]
[1747199745056,5.51237528,181.41,181.36,18.52]
[1747199745262,8.4318616,181.37,181.36,18.52]
[1747199749560,5.51237528,181.41,181.36,18.52]
[1747199749866,8.4318616,181.37,181.36,18.52]
[1747199751342,8.4318616,181.38,181.36,18.52]
[1747199751546,5.51261228,181.41,181.36,18.52]
[1747199751763,8.4318616,181.39,181.36,18.52]
[1747199755462,5.51176762,181.43,181.36,18.52]
[1747199755663,8.4318616,181.4,181.36,18.52]
[1747199757167,8.4318616,181.41,181.36,25.63826898]
[1747199757373,8.4318616,181.43,181.36,25.63826898]
[1747199757863,13.9436987,181.43,181.39,26.0]
[1747199758063,8.4318616,181.42,181.39,26.0]
[1747199759266,8.4318616,181.43,181.39,26.0]
[1747199760275,8.4318616,181.43,181.41,26.0]
[1747199761476,8.4318616,181.44,181.41,26.0]
[1747199761660,5.51091261,181.46,181.42,18.52]
[1747199761862,8.4318616,181.45,181.42,18.52]
[1747199762372,13.77456619,181.5,181.45,26.0]
[1747199762543,8.4318616,181.47,181.45,26.0]
[1747199762742,5.9318616,181.48,181.45,26.0]
[1747199762985,8.4318616,181.47,181.45,26.0]
[1747199765289,5.51025345,181.48,181.45,26.0]
[1747199765463,13.94211505,181.48,181.45,26.0]
[1747199765665,13.94211505,181.48,181.43,1.6201]
[1747199765666,8.4318616,181.46,181.43,1.6201]
[1747199765974,5.51025345,181.48,181.44,26.0]
[1747199766175,8.4318616,181.45,181.42,44.52]
[1747199766376,8.4318616,181.44,181.42,44.52]
[1747199767087,8.4318616,181.45,181.42,44.52]
[1747199767460,8.4318616,181.46,181.42,44.52]
[1747199767885,13.77520024,181.49,181.42,44.52]
[1747199768071,8.4318616,181.46,181.42,26.0]
[1747199768395,8.4318616,181.46,181.42,44.48]
[1747199768863,8.4318616,181.45,181.42,44.48]
[1747199769259,13.94309828,181.45,181.42,44.48]
[1747199769579,8.4318616,181.46,181.42,44.48]
[1747199769983,8.4318616,181.47,181.45,26.0]
[1747199770191,13.94211066,181.48,181.45,26.0]
[1747199770495,8.4318616,181.47,181.45,26.0]
[1747199771563,13.942423,181.47,181.45,26.0]
[1747199775571,13.94219566,181.48,181.45,26.0]
[1747199776607,8.4318616,181.52,181.45,18.48]
[1747199776770,8.4318616,181.53,181.47,26.0]
[1747199777099,8.4318616,181.53,181.48,18.48]
[1747199777467,13.94113393,181.52,181.48,18.48]
[1747199777973,8.4318616,181.51,181.5,26.0]
[1747199778479,5.50927233,181.52,181.48,18.48]
[1747199778692,8.4318616,181.51,181.48,18.48]
[1747199779684,13.94122331,181.51,181.48,18.48]
[1747199779884,8.4318616,181.51,181.48,18.48]
[1747199782110,8.4318616,181.52,181.48,18.48]
[1747199782482,8.4318616,181.53,181.48,18.48]
[1747199782698,8.4318616,181.54,181.51,26.0]
[1747199783772,8.4318616,181.53,181.51,26.0]
[1747199791782,8.4318616,181.54,181.51,26.0]
[1747199792410,5.50721445,181.58,181.51,26.0]
[1747199792608,8.4318616,181.54,181.51,26.0]
[1747199793006,8.4318616,181.52,181.49,27.6084]
[1747199793210,8.4318616,181.51,181.5,26.0]
[1747199793705,13.94119992,181.51,181.48,18.48]
[1747199794009,8.4318616,181.49,181.48,18.48]
[1747199794208,8.4318616,181.49,181.48,19.98]
[1747199794524,8.4318616,181.49,181.48,18.48]
[1747199795428,13.94180705,181.49,181.47,26.0]
[1747199795591,8.4318616,181.48,181.45,18.48]
[1747199795782,5.50994545,181.49,181.46,1.5]
[1747199796601,5.50994545,181.49,181.45,18.48]
[1747199797113,8.4318616,181.47,181.45,18.48]
[1747199797486,8.4318616,181.48,181.45,18.48]
[1747199799088,13.94219423,181.48,181.45,18.48]
[1747199799497,8.4318616,181.47,181.45,18.48]
[1747199806533,5.50903481,181.52,181.45,18.48]
[1747199806711,8.4318616,181.49,181.45,19.58222074]
[1747199807224,8.4318616,181.49,181.45,18.48]
[1747199808417,8.4318616,181.5,181.45,19.58222719]
[1747199808814,8.4318616,181.49,181.45,19.58222719]
[1747199809016,8.4318616,181.5,181.45,19.58222719]
[1747199809215,8.4318616,181.5,181.48,26.0]
[1747199809434,8.4318616,181.51,181.48,26.0]
[1747199809933,8.4318616,181.51,181.47,1.5837]
[1747199810431,8.4318616,181.5,181.47,1.5837]
[1747199811928,8.4318616,181.5,181.48,26.0]
[1747199812433,8.4318616,181.5,181.49,18.44]
[1747199813418,8.4318616,181.52,181.49,18.44]
[1747199813736,8.4318616,181.53,181.49,19.54197349]
[1747199814039,8.4318616,181.53,181.49,37.96197349]
[1747199814412,8.4318616,181.53,181.49,36.86]
[1747199814637,8.4318616,181.52,181.49,36.86]
[1747199817032,8.4318616,181.53,181.49,36.86]
[1747199818116,5.50844975,181.54,181.49,36.86]
[1747199818317,8.4318616,181.53,181.49,37.96197744]
[1747199819041,8.4318616,181.53,181.49,36.86]
[1747199819614,8.4318616,181.53,181.5,26.0]
[1747199819823,8.4318616,181.53,181.5,44.44]
[1747199820015,8.4318616,181.51,181.5,44.44]
[1747199820222,5.50844975,181.54,181.5,44.44]
[1747199820417,8.4318616,181.52,181.5,44.44]
[1747199821239,8.4318616,181.51,181.47,1.5837]
[1747199821426,5.50842789,181.54,181.49,18.44]
[1747199821821,8.4318616,181.5,181.49,18.44]
[1747199823218,13.94150347,181.5,181.49,18.44]
[1747199824143,5.50964187,181.5,181.49,18.44]
[1747199824353,13.77106973,181.54,181.49,18.44]
[1747199824650,8.4318616,181.51,181.49,44.44]
[1747199825631,5.50906061,181.52,181.49,44.44]
[1747199825829,8.4318616,181.54,181.49,44.44]
[1747199826522,5.50691117,181.59,181.52,26.0]
[1747199826740,8.4318616,181.56,181.52,26.0]
[1747199827324,5.50691117,181.59,181.52,26.0]
[1747199827558,0.14216157,181.59,181.52,26.0]
[1747199827852,8.4318616,181.55,181.52,26.0]
[1747199828527,8.4318616,181.53,181.49,7.6574]
[1747199828727,8.4318616,181.5,181.45,7.6687]
[1747199828933,8.4318616,181.48,181.47,18.44]
[1747199829547,8.4318616,181.48,181.46,0.45]
[1747199829548,8.4318616,181.48,181.46,18.85]
[1747199829727,8.4318616,181.47,181.46,18.85]
[1747199829920,8.4318616,181.53,181.46,18.85]
[1747199829921,8.4318616,181.49,181.46,18.85]
[1747199830122,8.4318616,181.5,181.47,26.0]
[1747199831146,8.4318616,181.51,181.47,26.0]
[1747199831720,8.4318616,181.5,181.47,26.0]
[1747199831944,8.4318616,181.49,181.48,26.0]
[1747199834752,13.94193928,181.49,181.44,26.0]
[1747199834933,5.51007768,181.49,181.46,18.4]
[1747199835133,8.4318616,181.47,181.46,18.4]
[1747199837664,13.9424143,181.47,181.46,18.4]
[1747199837836,8.4318616,181.47,181.46,18.4]
[1747199839061,8.4318616,181.48,181.46,18.4]
[1747199839266,5.50964187,181.5,181.46,18.4]
[1747199839440,8.4318616,181.48,181.46,18.4]
[1747199839641,8.4318616,181.47,181.46,18.4]
[1747199840040,8.4318616,181.48,181.46,18.4]
[1747199842859,13.94211538,181.48,181.46,18.4]
[1747199843036,8.4318616,181.47,181.46,18.4]
[1747199844877,13.9424143,181.47,181.46,18.4]
[1747199846784,24.44391745,181.49,181.46,18.4]
[1747199846958,8.4318616,181.47,181.46,18.4]
[1747199848997,13.9424143,181.47,181.46,18.4]
[1747199849298,5.5105527,181.47,181.46,18.4]
[1747199849468,13.9424143,181.47,181.46,18.4]
[1747199852562,32.8763863,181.47,181.46,18.4]
[1747199852866,18.933972,181.46,181.41,18.4]
[1747199853177,8.4318616,181.42,181.41,18.4]
[1747199853871,18.933972,181.46,181.41,18.4]
[1747199854071,8.4318616,181.42,181.41,18.4]
[1747199855602,13.94374487,181.43,181.41,18.4]
[1747199858507,8.4318616,181.43,181.41,18.4]
[1747199859476,8.4318616,181.45,181.41,18.4]
[1747199860492,13.94307419,181.45,181.41,18.4]
[1747199860694,8.4318616,181.46,181.41,19.50247274]
[1747199862304,8.4318616,181.47,181.44,26.0]
[1747199862899,8.4318616,181.48,181.44,26.0]
[1747199863969,5.50994545,181.49,181.44,26.0]
[1747199864283,8.4318616,181.48,181.44,26.0]
[1747199864615,8.4318616,181.48,181.44,45.46226181]
[1747199864889,8.4318616,181.5,181.44,45.46226181]
[1747199865782,13.77233281,181.53,181.44,45.46226181]
[1747199865783,8.4318616,181.49,181.44,45.46226181]
[1747199866004,8.4318616,181.5,181.44,45.46226181]
[1747199866480,8.4318616,181.49,181.44,45.46226181]
[1747199867006,8.4318616,181.48,181.44,44.36]
[1747199867304,8.4318616,181.46,181.44,2.77]
[1747199867467,8.4318616,181.47,181.44,21.13]
[1747199867969,13.9425325,181.47,181.44,21.13]
[1747199868302,8.4318616,181.47,181.44,21.13]
[1747199868674,8.4318616,181.47,181.44,18.36]
[1747199872892,8.4318616,181.47,181.46,26.0]
[1747199872893,13.94246204,181.47,181.46,26.0]
[1747199874305,8.4318616,181.47,181.44,18.36]
[1747199875500,13.94243673,181.47,181.44,18.36]
[1747199876318,8.4318616,181.47,181.44,18.36]
[1747199877892,13.94244159,181.47,181.44,18.36]
[1747199881024,8.4318616,181.47,181.44,18.36]
[1747199881404,5.50964187,181.5,181.44,18.36]
[1747199881721,5.50964187,181.5,181.44,19.46228899]
[1747199881722,8.4318616,181.5,181.44,19.46228899]
[1747199881903,8.4318616,181.5,181.45,1.655]
[1747199882594,13.94155861,181.5,181.45,1.655]
[1747199882933,8.4318616,181.49,181.45,1.655]
[1747199884923,13.94187338,181.49,181.45,1.655]
[1747199885414,8.4318616,181.48,181.44,18.36]
[1747199885597,8.4318616,181.47,181.45,26.0]
[1747199885916,8.4318616,181.47,181.45,44.36]
[1747199886614,13.94271798,181.46,181.4,1.5366]
[1747199886823,13.94271798,181.46,181.43,18.36]
[1747199886824,5.51085638,181.46,181.43,18.36]
[1747199887026,13.94271798,181.46,181.43,18.36]
[1747199889326,8.4318616,181.45,181.43,18.36]
[1747199890207,13.94271798,181.46,181.43,18.36]
[1747199892018,5.51024906,181.48,181.43,18.36]
[1747199892224,8.4318616,181.47,181.43,18.36]
[1747199894324,13.9426225,181.47,181.43,18.36]
[1747199896024,13.9426225,181.47,181.44,18.32]
[1747199899906,5.5107609,181.47,181.44,18.32]
[1747199902202,8.4318616,181.48,181.44,18.32]
[1747199902403,8.4318616,181.53,181.44,45.42228799]
[1747199902404,8.4318616,181.5,181.44,45.42228799]
[1747199904231,13.94160132,181.5,181.44,45.42228799]
[1747199904405,8.4318616,181.49,181.44,44.32]
[1747199904905,8.4318616,181.49,181.44,44.73]
[1747199906621,8.4318616,181.49,181.44,45.83227398]
[1747199912341,8.4318616,181.5,181.44,45.83227398]
[1747199914243,13.94164493,181.5,181.44,45.83227398]
[1747199915250,13.94164493,181.5,181.44,44.73]
[1747199915631,8.4318616,181.49,181.44,44.73]
[1747199916446,13.94210879,181.49,181.44,44.32]
[1747199919347,10.89529295,181.49,181.44,44.32]
[1747199919665,5.51024719,181.49,181.44,62.6]
[1747199922543,5.51024719,181.49,181.44,36.6]
[1747199925671,5.51024719,181.49,181.44,36.58]
[1747199927565,10.89529295,181.49,181.44,36.58]
[1747199931438,5.38504576,181.48,181.44,18.32]
[1747199931637,5.38504576,181.45,181.44,18.32]
[1747199932207,5.38504576,181.46,181.44,18.32]
[1747199932474,19.28511081,181.49,181.44,18.32]
[1747199932647,10.89529295,181.49,181.44,18.32]
[1747199933052,5.51024719,181.49,181.44,18.32]
[1747199934047,5.38504576,181.49,181.44,18.32]
[1747199935272,5.38504576,181.49,181.44,19.42229052]
[1747199935570,5.38504576,181.49,181.44,18.32]
[1747199936240,10.89512315,181.49,181.44,18.32]
[1747199936449,5.38504576,181.49,181.44,19.42228679]
[1747199943946,5.38504576,181.49,181.44,1.10228679]
[1747199944186,5.38504576,181.49,181.45,18.26]
[1747199944482,5.50971719,181.5,181.45,18.26]
[1747199944483,10.89476295,181.5,181.45,18.26]
[1747199945582,5.50842789,181.54,181.45,18.26]
[1747199945748,5.50842789,181.54,181.48,26.0]
[1747199945749,5.38504576,181.53,181.48,26.0]
[1747199946073,5.38504576,181.55,181.5,26.0]
[1747199946958,5.38504576,181.55,181.51,18.26]
[1747199947551,10.89316352,181.56,181.51,18.26]
[1747199948563,18.79181043,181.61,181.54,26.0]
[1747199948764,5.38504576,181.57,181.54,26.0]
[1747199949566,10.89257986,181.57,181.54,26.0]
[1747199950087,5.5075341,181.57,181.54,26.0]
[1747199950283,10.89257986,181.57,181.54,26.0]
[1747199951670,5.38504576,181.56,181.54,26.0]
[1747199951872,5.50660792,181.6,181.54,26.0]
[1747199952189,5.38504576,181.56,181.54,26.0]
[1747199954674,5.38504576,181.57,181.54,26.0]
[1747199955194,5.38504576,181.59,181.56,26.0]
[1747199955570,5.38504576,181.59,181.53,19.32172819]
[1747199956880,5.38504576,181.58,181.53,19.32172819]
[1747199962600,19.27032986,181.63,181.53,19.32172819]
[1747199962798,5.38504576,181.58,181.53,19.32172819]
[1747199963910,5.50690985,181.6,181.53,19.32172819]
[1747199964097,5.50600154,181.62,181.53,19.32172819]
[1747199964407,5.38504576,181.6,181.53,19.32172819]
[1747199965193,5.38504576,181.59,181.54,27.10164456]
[1747199966881,5.38504576,181.6,181.54,27.10164456]
[1747199969311,5.38504576,181.58,181.54,26.0]
[1747199971215,10.8922901,181.58,181.54,26.0]
[1747199971982,5.50724434,181.58,181.55,62.38]
[1747199972183,13.76481197,181.63,181.55,62.38]
[1747199972391,5.38504576,181.58,181.55,62.38]
[1747199973081,5.38504576,181.57,181.56,36.38]
[1747199973707,5.38504576,181.57,181.53,18.2]
[1747199973885,5.38504576,181.54,181.53,18.2]
[1747199974205,10.89347365,181.54,181.53,18.2]
[1747199976210,10.89347365,181.54,181.49,224.3]
[1747199976387,5.38504576,181.5,181.49,224.3]
[1747199978215,5.38504576,181.52,181.49,224.3]
[1747199978400,5.38504576,181.53,181.49,224.3]
[1747199978805,5.38504576,181.53,181.5,18.16]
[1747199979112,5.38504576,181.52,181.5,18.16]
[1747199982412,10.89414699,181.52,181.5,18.16]
[1747199983196,10.89414699,181.52,181.48,26.0]
[1747199983397,10.89414699,181.52,181.49,18.16]
[1747199985017,10.89414699,181.52,181.48,26.0]
[1747199985198,10.89414699,181.52,181.49,18.16]
[1747199985826,5.38504576,181.51,181.49,18.16]
[1747199986595,5.38504576,181.51,181.48,26.0]
[1747199986801,5.38504576,181.51,181.47,1.647]
[1747199986802,5.38504576,181.49,181.47,1.647]
[1747199986996,18.933972,181.55,181.48,18.16]
[1747199987203,5.38504576,181.51,181.48,18.16]
[1747199987612,5.38504576,181.5,181.48,18.16]
[1747199987816,5.51024906,181.48,181.47,18.16]
[1747199988021,10.89529482,181.48,181.46,18.16]
[1747199988200,5.38504576,181.47,181.46,18.16]
[1747199988511,10.89529482,181.48,181.46,18.16]
[1747199988913,10.89559846,181.47,181.46,18.16]
[1747199989321,5.5105527,181.47,181.46,18.16]
[1747199992537,10.89537297,181.48,181.46,18.16]
[1747199992722,5.38504576,181.47,181.46,18.16]
[1747199993200,10.89537297,181.48,181.46,18.16]
[1747199994043,5.38504576,181.5,181.46,18.16]
[1747199994332,10.89438408,181.51,181.46,18.16]
[1747199994706,5.38504576,181.5,181.46,18.16]
[1747199995532,10.89474938,181.5,181.46,18.16]
[1747200002743,5.50842789,181.54,181.49,26.0]
[1747200002921,10.89347365,181.54,181.49,44.14]
[1747200003114,5.50842789,181.54,181.49,44.14]
[1747200003315,5.38504576,181.54,181.49,45.7065]
[1747200003551,32.56031247,181.58,181.49,45.7065]
[1747200003552,10.89292921,181.56,181.49,45.7065]
[1747200004243,5.38504576,181.55,181.49,45.7065]
[1747200004621,10.89321843,181.55,181.49,46.80846864]
[1747200005350,8.408669,181.54,181.49,46.80846864]
[1747200006145,13.76850204,181.58,181.49,46.80846864]
[1747200006450,8.408669,181.56,181.49,46.80846864]
[1747200006646,8.408669,181.55,181.49,46.80846864]
[1747200007643,19.2741891,181.59,181.49,46.80846864]
[1747200007853,8.408669,181.55,181.49,46.80846864]
[1747200008358,8.408669,181.54,181.49,46.80846864]
[1747200009247,8.408669,181.55,181.49,46.80846864]
[1747200011134,8.408669,181.57,181.49,46.80846864]
[1747200011336,8.408669,181.58,181.49,49.56344136]
[1747200011938,13.91558017,181.59,181.49,47.35948363]
[1747200012650,0.14216157,181.63,181.49,51.49194271]
[1747200012651,5.50630471,181.61,181.49,51.49194271]
[1747200012959,5.50630471,181.61,181.49,33.35194271]
[1747200013252,8.408669,181.6,181.53,26.0]
[1747200014059,8.408669,181.59,181.53,27.65260409]
[1747200014439,8.408669,181.57,181.49,5.69895908]
[1747200014639,8.408669,181.57,181.53,26.0]
[1747200016042,8.408669,181.57,181.53,27.6526189]
[1747200016245,5.50630471,181.61,181.53,27.6526189]
[1747200016449,8.408669,181.59,181.53,27.6526189]
[1747200017157,5.50630471,181.61,181.53,27.6526189]
[1747200017158,8.408669,181.58,181.53,27.6526189]
[1747200017655,8.408669,181.59,181.53,27.6526189]
[1747200018462,13.91533471,181.6,181.53,27.6526189]
[1747200021849,8.408669,181.59,181.53,27.6526189]
[1747200023152,8.408669,181.57,181.5,18.1]
[1747200023339,8.408669,181.56,181.51,18.1]
[1747200023767,8.408669,181.55,181.52,18.1]
[1747200023961,8.408669,181.54,181.52,18.1]
[1747200024837,19.27423463,181.59,181.52,18.1]
[1747200024838,13.91694729,181.55,181.52,18.1]
[1747200025763,13.91694729,181.55,181.51,44.1]
[1747200025764,8.408669,181.53,181.51,18.1]
[1747200025942,8.408669,181.52,181.51,18.1]
[1747200026877,13.91713138,181.54,181.51,18.1]
[1747200029807,8.408669,181.53,181.51,18.1]
[1747200030980,13.91742058,181.53,181.51,18.1]
[1747200039294,5.5078211,181.56,181.51,18.1]
[1747200039495,8.408669,181.53,181.51,18.1]
[1747200039791,5.5078211,181.56,181.51,18.1]
[1747200039995,8.408669,181.53,181.51,18.1]
[1747200040568,5.50877937,181.53,181.51,18.1]
[1747200040790,13.91744837,181.53,181.51,18.1]
[1747200043298,10.89151869,181.53,181.51,18.1]
[1747200044271,5.38273932,181.53,181.51,18.1]
[1747200047994,19.27665298,181.57,181.51,18.1]
[1747200048197,5.38273932,181.54,181.51,18.1]
[1747200050186,10.89123146,181.54,181.51,18.1]
[1747200051295,24.4476,181.63,181.51,18.1]
[1747200051296,5.38273932,181.55,181.51,18.1]
[1747200051486,5.38273932,181.56,181.51,18.1]
[1747200052197,10.89073844,181.56,181.51,18.1]
[1747200054586,10.89091778,181.55,181.51,18.1]
[1747200055005,5.38273932,181.54,181.51,18.1]
[1747200057326,5.50817846,181.55,181.51,18.1]
[1747200057488,5.38273932,181.55,181.51,18.1]
[1747200058811,5.79123431,181.59,181.51,18.1]
[1747200059002,5.38273932,181.55,181.51,18.1]
[1747200060200,5.38273932,181.52,181.51,18.1]
[1747200060703,10.89166305,181.53,181.51,18.1]
[1747200060907,5.50892373,181.53,181.51,18.1]
[1747200061788,10.89166305,181.53,181.51,18.1]
[1747200063223,5.5078211,181.56,181.51,18.1]
[1747200063511,10.89056042,181.56,181.51,18.1]
[1747200064019,5.38273932,181.55,181.51,18.1]
[1747200065289,10.89101573,181.55,181.51,18.1]
[1747200065909,5.38273932,181.54,181.5,1.5392]
[1747200066141,5.38273932,181.51,181.46,1.6199]
[1747200066431,5.38273932,181.49,181.48,18.06]
[1747200067414,8.41495348,181.49,181.48,18.06]
[1747200067929,5.6508929,181.53,181.48,18.06]
[1747200068098,8.41495348,181.51,181.48,18.06]
[1747200069327,13.92448681,181.51,181.48,18.06]
[1747200071115,8.41495348,181.5,181.48,18.06]
[1747200072121,13.92474842,181.5,181.48,18.06]
[1747200072718,8.41495348,181.51,181.48,18.06]
[1747200074030,8.41495348,181.52,181.48,18.06]
[1747200074607,13.92410695,181.52,181.48,18.06]
[1747200074827,13.92410695,181.52,181.48,44.06]
[1747200075017,13.92410695,181.52,181.48,62.1]
[1747200075922,8.41495348,181.51,181.48,62.1]
[1747200078732,13.92433204,181.51,181.48,62.1]
[1747200080424,8.41495348,181.49,181.48,18.04]
[1747200081334,5.50937856,181.51,181.48,18.04]
[1747200081522,8.41495348,181.49,181.48,18.04]
[1747200082123,8.41495348,181.5,181.48,18.04]
[1747200082391,13.92489893,181.49,181.48,18.04]
[1747200082521,13.92489893,181.49,181.45,18.04]